fUST/lending_fUST_20240703
["ID","MTS","AMOUNT","RATE_DAILY","PERIOD"]
[330938224,1719953448084,-500.0,0.00014067,2]
[330938225,1719953448096,-635.88636097,0.00014067,2]
[330938226,1719953448106,-271.127465,0.00014067,2]
[330938227,1719953448116,-271.127465,0.00014067,2]
[330938228,1719953448125,-151.0,0.00014067,2]
[330938229,1719953448135,-151.0,0.00014067,2]
[330938230,1719953448143,-151.0,0.00014067,2]
[330938231,1719953448153,-151.0,0.00014067,2]
[330938232,1719953448162,-151.0,0.00014067,2]
[330938233,1719953448171,-151.0,0.00014067,2]
[330938234,1719953448180,-249.993789,0.00014067,2]
[330938235,1719953448189,-375.37219114,0.00014068,2]
[330938236,1719953448199,-14636.05,0.00014068,2]
[330938237,1719953448209,-500.0,0.00014068,2]
[330938238,1719953448218,-500.0,0.00014068,2]
[330938239,1719953448227,-500.0,0.00014068,2]
[330938240,1719953448236,-5037.86,0.00014068,2]
[330938241,1719953448245,-1597.8,0.00014068,2]
[330938242,1719953448255,-5338.76,0.00014068,2]
[330938243,1719953448264,-151.0,0.00014068,2]
[330938244,1719953448273,-151.0,0.00014068,2]
[330938245,1719953448282,-1179.03,0.00014068,2]
[330938246,1719953448291,-645.07580406,0.00014068,2]
[330938247,1719953448300,-271.127465,0.00014068,2]
[330938248,1719953448309,-1026.14,0.00014068,2]
[330938249,1719953448319,-271.127465,0.00014068,2]
[330938250,1719953448328,-271.127465,0.00014068,2]
[330938251,1719953448338,-271.127465,0.00014068,2]
[330938252,1719953448347,-151.0,0.00014068,2]
[330938253,1719953448356,-151.0,0.00014068,2]
[330938254,1719953448365,-721.13,0.00014068,2]
[330938255,1719953448374,-151.0,0.00014068,2]
[330938256,1719953448383,-151.0,0.00014068,2]
[330938257,1719953448392,-868.19,0.00014068,2]
[330938258,1719953448401,-151.0,0.00014068,2]
[330938259,1719953448412,-151.0,0.00014068,2]
[330938260,1719953448421,-9668.87,0.00014068,2]
[330938261,1719953448430,-151.0,0.00014068,2]
[330938262,1719953448440,-151.0,0.00014068,2]
[330938263,1719953448449,-151.0,0.00014068,2]
[330938264,1719953448460,-151.0,0.00014068,2]
[330938265,1719953448470,-151.0,0.00014068,2]
[330938266,1719953448480,-151.0,0.00014068,2]
[330938267,1719953448489,-5330.17,0.00014068,2]
[330938268,1719953448500,-151.0,0.00014069,2]
[330938269,1719953448510,-271.127465,0.00014069,2]
[330938270,1719953448519,-271.127469,0.00014069,2]
[330938271,1719953448528,-151.0,0.00014069,2]
[330938272,1719953448538,-151.0,0.00014069,2]
[330938273,1719953448549,-721.13,0.00014085,2]
[330938274,1719953448559,-40006.73786668,0.00014086,2]
[330938275,1719953448569,-2355.33658924,0.00014338,2]
[330938276,1719953448579,-500.0,0.00014338,2]
[330938277,1719953448590,-500.0,0.00014338,2]
[330938278,1719953448599,-500.0,0.00014338,2]
[330938279,1719953448609,-709.62,0.00014338,2]
[330938280,1719953448619,-1961.17,0.00014338,2]
[330938281,1719953448630,-500.0,0.00014338,2]
[330938282,1719953448641,-763.02,0.00014338,2]
[330938283,1719953448650,-13066.27,0.00014338,2]
[330938284,1719953448659,-308.58,0.00014338,2]
[330938285,1719953448669,-1451.22,0.00014338,2]
[330938286,1719953448682,-1012.0,0.00014339,2]
[330938287,1719953448691,-500.0,0.00014339,2]
[330938288,1719953448700,-1058.43,0.00014339,2]
[330938289,1719953448710,-900.84,0.00014339,2]
[330938290,1719953448720,-1156.99,0.00014339,2]
[330938291,1719953448730,-500.0,0.00014339,2]
[330938292,1719953448742,-652.55,0.00014339,2]
[330938293,1719953448751,-309.54334862,0.00014339,2]
[330938294,1719953448761,-161.98618955,0.00014339,2]
[330938295,1719953448770,-648.63,0.00014339,2]
[330938296,1719953448780,-601.13,0.00014339,2]
[330938297,1719953448791,-382.73,0.00014339,2]
[330938298,1719953448801,-500.0,0.00014339,2]
[330938299,1719953448810,-500.0,0.00014339,2]
[330938300,1719953448820,-156.52,0.00014339,2]
[330938301,1719953448830,-302.06,0.00014339,2]
[330938302,1719953448839,-213.51,0.00014339,2]
[330938303,1719953448848,-572.32,0.00014339,2]
[330938304,1719953448858,-206.39,0.00014339,2]
[330938305,1719953448867,-349.86,0.00014339,2]
[330938306,1719953448876,-2660.79,0.00014339,2]
[330938307,1719953448886,-287.41,0.00014339,2]
[330938308,1719953448895,-500.0,0.00014339,2]
[330938309,1719953448905,-684.69,0.00014339,2]
[330938310,1719953448914,-500.0,0.00014339,2]
[330938311,1719953448923,-500.0,0.00014339,2]
[330938312,1719953448933,-1189.34,0.00014339,2]
[330938313,1719953448943,-500.0,0.00014339,2]
[330938314,1719953448951,-500.0,0.00014339,2]
[330938315,1719953448960,-500.0,0.00014339,2]
[330938316,1719953448969,-755.48,0.00014339,2]
[330938317,1719953448979,-316.51,0.00014339,2]
[330938318,1719953448988,-708.11,0.00014339,2]
[330938319,1719953448997,-1195.87,0.00014339,2]
[330938320,1719953449012,-2542.93,0.00014339,2]
[330938321,1719953449022,-721.13,0.00014339,2]
[330938322,1719953449031,-721.13,0.00014339,2]
[330938323,1719953449041,-5669.46,0.00014339,2]
[330938324,1719953449051,-7177.56,0.00014339,2]
[330938325,1719953449061,-2764.22,0.00014339,2]
[330938326,1719953449071,-500.0,0.00014339,2]
[330938327,1719953449082,-500.0,0.00014339,2]
[330938328,1719953449092,-217.46,0.00014339,2]
[330938329,1719953449101,-500.0,0.00014339,2]
[330938330,1719953449111,-1408.99,0.00014339,2]
[330938331,1719953449121,-1047.62,0.00014339,2]
[330938332,1719953449130,-500.0,0.00014339,2]
[330938333,1719953449139,-3581.02,0.00014339,2]
[330938334,1719953449150,-3498.68,0.00014339,2]
[330938335,1719953449161,-500.0,0.0001434,2]
[330938336,1719953449171,-422.61,0.0001434,2]
[330938337,1719953449180,-595.82,0.0001434,2]
[330938338,1719953449189,-500.0,0.0001434,2]
[330938339,1719953449198,-449.62292887,0.0001434,2]
[330938340,1719953449207,-500.0,0.0001434,2]
[330938341,1719953449216,-543.46,0.0001434,2]
[330938342,1719953449225,-571.31,0.0001434,2]
[330938343,1719953449235,-350.59432219,0.0001434,2]
[330938344,1719953449244,-500.0,0.0001434,2]
[330938345,1719953449254,-500.0,0.0001434,2]
[330938346,1719953449263,-500.0,0.0001434,2]
[330938347,1719953449271,-780.2,0.0001434,2]
[330938348,1719953449281,-500.0,0.0001434,2]
[330938349,1719953449290,-578.47295228,0.0001434,2]
[330938350,1719953449299,-500.0,0.0001434,2]
[330938351,1719953449308,-500.0,0.0001434,2]
[330938352,1719953449318,-500.0,0.0001434,2]
[330938353,1719953449327,-500.0,0.0001434,2]
[330938354,1719953449336,-500.0,0.0001434,2]
[330938355,1719953449345,-500.0,0.0001434,2]
[330938356,1719953449354,-500.0,0.0001434,2]
[330938357,1719953449363,-6991.72,0.0001434,2]
[330938358,1719953449372,-500.0,0.0001434,2]
[330938359,1719953449381,-500.0,0.0001434,2]
[330938360,1719953449390,-500.0,0.0001434,2]
[330938361,1719953449399,-500.0,0.0001434,2]
[330938362,1719953449410,-484.20232186,0.0001434,2]
[330938363,1719953449419,-500.0,0.0001434,2]
[330938364,1719953449429,-1108.22,0.0001434,2]
[330938365,1719953449538,-500.0,0.0001434,2]
[330938366,1719953449549,-1316.98,0.0001434,2]
[330938367,1719953449561,-500.0,0.0001434,2]
[330938368,1719953449570,-500.0,0.0001434,2]
[330938369,1719953449580,-500.0,0.0001434,2]
[330938370,1719953449589,-500.0,0.0001434,2]
[330938371,1719953449599,-500.0,0.0001434,2]
[330938372,1719953449607,-474.6550702,0.0001434,2]
[330938373,1719953449616,-500.0,0.0001434,2]
[330938374,1719953449625,-500.0,0.0001434,2]
[330938375,1719953449634,-500.0,0.0001434,2]
[330938376,1719953449644,-750.53,0.0001434,2]
[330938377,1719953449652,-599.12,0.0001434,2]
[330938378,1719953449661,-500.0,0.0001434,2]
[330938379,1719953449670,-500.0,0.0001434,2]
[330938380,1719953449679,-500.0,0.0001434,2]
[330938381,1719953449689,-236.56084137,0.0001434,2]
[330938382,1719953449698,-500.0,0.0001434,2]
[330938383,1719953449707,-853.81,0.0001434,2]
[330938384,1719953449716,-555.2,0.0001434,2]
[330938385,1719953449724,-808.36,0.0001434,2]
[330938386,1719953449733,-500.0,0.0001434,2]
[330938387,1719953449742,-500.0,0.0001434,2]
[330938388,1719953449751,-500.0,0.0001434,2]
[330938389,1719953449760,-1045.46,0.0001434,2]
[330938390,1719953449769,-500.0,0.0001434,2]
[330938391,1719953449778,-500.0,0.0001434,2]
[330938392,1719953449787,-721.13,0.0001434,2]
[330938393,1719953449796,-500.0,0.0001434,2]
[330938394,1719953449805,-660.46,0.0001434,2]
[330938395,1719953449814,-830.13,0.0001434,2]
[330938396,1719953449823,-1050.41,0.0001434,2]
[330938397,1719953449832,-500.0,0.0001434,2]
[330938398,1719953449841,-677.38,0.0001434,2]
[330938399,1719953449850,-807.44,0.0001434,2]
[330938400,1719953449859,-500.0,0.0001434,2]
[330938401,1719953449869,-500.0,0.00014341,2]
[330938402,1719953449878,-500.0,0.00014341,2]
[330938403,1719953449886,-500.0,0.00014341,2]
[330938404,1719953449895,-500.0,0.00014341,2]
[330938405,1719953449904,-500.0,0.00014341,2]
[330938406,1719953449914,-500.0,0.00014341,2]
[330938407,1719953449922,-500.0,0.00014341,2]
[330938408,1719953449932,-14636.05,0.00014342,2]
[330938409,1719953449943,-500.0,0.00014342,2]
[330938410,1719953449952,-500.0,0.00014342,2]
[330938411,1719953449961,-500.0,0.00014342,2]
[330938412,1719953449971,-5037.86,0.00014342,2]
[330938413,1719953449980,-1597.8,0.00014342,2]
[330938414,1719953449989,-5338.76,0.00014342,2]
[330938415,1719953449999,-1179.03,0.00014342,2]
[330938416,1719953450012,-1026.14,0.00014342,2]
[330938417,1719953450022,-721.13,0.00014342,2]
[330938418,1719953450031,-868.19,0.00014342,2]
[330938419,1719953450040,-9668.87,0.00014342,2]
[330938420,1719953450050,-5330.17,0.00014342,2]
[330938421,1719953450060,-153.0,0.0001435,2]
[330938422,1719953450069,-153.0,0.0001435,2]
[330938423,1719953450078,-153.0,0.0001435,2]
[330938424,1719953450089,-153.0,0.0001435,2]
[330938425,1719953450099,-153.0,0.0001435,2]
[330938426,1719953450108,-153.0,0.0001435,2]
[330938427,1719953450117,-153.0,0.0001435,2]
[330938428,1719953450127,-153.0,0.0001435,2]
[330938429,1719953450137,-153.0,0.0001435,2]
[330938430,1719953450146,-153.0,0.0001435,2]
[330938431,1719953450155,-153.0,0.0001435,2]
[330938432,1719953450165,-153.0,0.0001435,2]
[330938433,1719953450175,-153.0,0.0001435,2]
[330938434,1719953450184,-153.0,0.0001435,2]
[330938435,1719953450195,-153.0,0.0001435,2]
[330938436,1719953450204,-153.0,0.0001435,2]
[330938437,1719953450213,-153.0,0.0001435,2]
[330938438,1719953450222,-153.0,0.0001435,2]
[330938439,1719953450231,-153.0,0.0001435,2]
[330938440,1719953450241,-153.0,0.0001435,2]
[330938441,1719953450250,-153.0,0.0001435,2]
[330938442,1719953450260,-153.0,0.0001435,2]
[330938443,1719953450269,-153.0,0.0001435,2]
[330938444,1719953450278,-153.0,0.00014352,2]
[330938445,1719953450288,-153.0,0.00014352,2]
[330938446,1719953450297,-153.0,0.00014352,2]
[330938447,1719953450306,-153.0,0.00014352,2]
[330938448,1719953450315,-153.0,0.00014352,2]
[330938449,1719953450324,-153.0,0.00014352,2]
[330938450,1719953450333,-153.0,0.00014352,2]
[330938451,1719953450342,-153.0,0.00014352,2]
[330938452,1719953450350,-153.0,0.00014352,2]
[330938453,1719953450360,-153.0,0.00014352,2]
[330938454,1719953450369,-153.0,0.00014352,2]
[330938455,1719953450378,-153.0,0.00014352,2]
[330938456,1719953450387,-153.0,0.00014352,2]
[330938457,1719953450396,-153.0,0.00014352,2]
[330938458,1719953450405,-153.0,0.00014352,2]
[330938459,1719953450415,-153.0,0.00014352,2]
[330938460,1719953450423,-153.0,0.00014352,2]
[330938461,1719953450432,-153.0,0.00014352,2]
[330938462,1719953450443,-153.0,0.00014352,2]
[330938463,1719953450452,-153.0,0.00014352,2]
[330938464,1719953450460,-153.0,0.00014352,2]
[330938465,1719953450470,-153.0,0.00014352,2]
[330938466,1719953450479,-153.0,0.00014352,2]
[330938467,1719953450488,-153.0,0.00014352,2]
[330938468,1719953450497,-153.0,0.00014352,2]
[330938469,1719953450506,-153.0,0.00014352,2]
[330938470,1719953450515,-153.0,0.00014352,2]
[330938471,1719953450524,-153.0,0.00014352,2]
[330938472,1719953450533,-153.0,0.00014352,2]
[330938473,1719953450543,-153.0,0.00014352,2]
[330938474,1719953450552,-153.0,0.00014352,2]
[330938475,1719953450561,-153.0,0.00014352,2]
[330938476,1719953450570,-153.0,0.00014352,2]
[330938477,1719953450579,-153.0,0.00014365,2]
[330938478,1719953450588,-153.0,0.00014365,2]
[330938479,1719953450598,-153.0,0.00014365,2]
[330938480,1719953450608,-153.0,0.00014365,2]
[330938481,1719953450618,-153.0,0.00014365,2]
[330938482,1719953450630,-153.0,0.00014365,2]
[330938483,1719953450639,-153.0,0.00014365,2]
[330938484,1719953450648,-153.0,0.00014365,2]
[330938485,1719953450662,-153.0,0.00014365,2]
[330938486,1719953450675,-150.0,0.0001448,2]
[330938487,1719953450690,-877.0,0.0001448,2]
[330938488,1719953450703,-644.37057363,0.00014484,2]
[330938489,1719953450715,-595.0,0.000145,2]
[330938490,1719953450725,-721.13,0.00014514,2]
[330938491,1719953450738,-721.13,0.00014514,2]
[330938492,1719953450751,-721.13,0.00014514,2]
[330938493,1719953450762,-500.0,0.00014612,2]
[330938494,1719953450775,-276.41,0.00014612,2]
[330938495,1719953450790,-709.62,0.00014612,2]
[330938496,1719953450801,-1961.17,0.00014612,2]
[330938497,1719953450816,-500.0,0.00014612,2]
[330938498,1719953450830,-763.02,0.00014612,2]
[330938499,1719953450843,-13066.27,0.00014612,2]
[330938500,1719953450856,-1451.22,0.00014612,2]
[330938501,1719953450868,-150.0,0.00014613,2]
[330938502,1719953450880,-150.0,0.00014613,2]
[330938503,1719953450891,-1012.0,0.00014613,2]
[330938504,1719953450904,-500.0,0.00014613,2]
[330938505,1719953450917,-1058.43,0.00014613,2]
[330938506,1719953450929,-900.84,0.00014613,2]
[330938507,1719953450941,-1156.99,0.00014613,2]
[330938508,1719953450952,-500.0,0.00014613,2]
[330938509,1719953450963,-652.55,0.00014613,2]
[330938510,1719953450975,-648.63,0.00014613,2]
[330938511,1719953450987,-601.13,0.00014613,2]
[330938512,1719953450999,-500.0,0.00014613,2]
[330938513,1719953451014,-574.11,0.00014613,2]
[330938514,1719953451026,-572.32,0.00014613,2]
[330938515,1719953451038,-2660.79,0.00014613,2]
[330938516,1719953451052,-500.0,0.00014613,2]
[330938517,1719953451065,-684.69,0.00014613,2]
[330938518,1719953451077,-500.0,0.00014613,2]
[330938519,1719953451090,-500.0,0.00014613,2]
[330938520,1719953451101,-1189.34,0.00014613,2]
[330938521,1719953451111,-500.0,0.00014613,2]
[330938522,1719953451122,-500.0,0.00014613,2]
[330938523,1719953451135,-500.0,0.00014613,2]
[330938524,1719953451146,-755.48,0.00014613,2]
[330938525,1719953451159,-708.11,0.00014613,2]
[330938526,1719953451170,-1195.87,0.00014613,2]
[330938527,1719953451180,-2542.93,0.00014613,2]
[330938528,1719953451191,-5669.46,0.00014613,2]
[330938529,1719953451203,-721.13,0.00014613,2]
[330938530,1719953451216,-721.13,0.00014613,2]
[330938531,1719953451227,-7177.56,0.00014613,2]
[330938532,1719953451238,-2764.22,0.00014613,2]
[330938533,1719953451248,-500.0,0.00014613,2]
[330938534,1719953451258,-500.0,0.00014613,2]
[330938535,1719953451269,-500.0,0.00014613,2]
[330938536,1719953451280,-1408.99,0.00014613,2]
[330938537,1719953451291,-1047.62,0.00014613,2]
[330938538,1719953451301,-500.0,0.00014613,2]
[330938539,1719953451312,-3498.68,0.00014613,2]
[330938540,1719953451323,-500.0,0.00014614,2]
[330938541,1719953451333,-500.0,0.00014614,2]
[330938542,1719953451344,-571.31,0.00014614,2]
[330938543,1719953451356,-780.2,0.00014614,2]
[330938544,1719953451367,-6991.72,0.00014614,2]
[330938545,1719953451377,-199.83,0.00014614,2]
[330938546,1719953451388,-500.0,0.00014614,2]
[330938547,1719953451399,-1108.22,0.00014614,2]
[330938548,1719953451410,-500.0,0.00014614,2]
[330938549,1719953451420,-1316.98,0.00014614,2]
[330938550,1719953451432,-500.0,0.00014614,2]
[330938551,1719953451444,-500.0,0.00014614,2]
[330938552,1719953451455,-500.0,0.00014614,2]
[330938553,1719953451468,-500.0,0.00014614,2]
[330938554,1719953451479,-500.0,0.00014614,2]
[330938555,1719953451490,-750.53,0.00014614,2]
[330938556,1719953451501,-599.12,0.00014614,2]
[330938557,1719953451511,-500.0,0.00014614,2]
[330938558,1719953451522,-500.0,0.00014614,2]
[330938559,1719953451532,-500.0,0.00014614,2]
[330938560,1719953451543,-853.81,0.00014614,2]
[330938561,1719953451554,-555.2,0.00014614,2]
[330938562,1719953451564,-808.36,0.00014614,2]
[330938563,1719953451575,-433.3,0.00014614,2]
[330938564,1719953451586,-500.0,0.00014614,2]
[330938565,1719953451597,-370.64,0.00014614,2]
[330938566,1719953451608,-1045.46,0.00014614,2]
[330938567,1719953451618,-389.79158729,0.00014614,2]
[330938568,1719953451629,-500.0,0.00014614,2]
[330938569,1719953451640,-500.0,0.00014614,2]
[330938570,1719953451653,-660.46,0.00014614,2]
[330938571,1719953451666,-830.13,0.00014614,2]
[330938572,1719953451678,-1050.41,0.00014614,2]
[330938573,1719953451689,-500.0,0.00014614,2]
[330938574,1719953451699,-677.38,0.00014614,2]
[330938575,1719953451710,-807.44,0.00014614,2]
[330938576,1719953451721,-500.0,0.00014614,2]
[330938577,1719953451732,-500.0,0.00014615,2]
[330938578,1719953451743,-500.0,0.00014615,2]
[330938579,1719953451754,-500.0,0.00014615,2]
[330938580,1719953451765,-500.0,0.00014615,2]
[330938581,1719953451776,-500.0,0.00014615,2]
[330938582,1719953451787,-500.0,0.00014615,2]
[330938583,1719953451798,-721.13,0.00014615,2]
[330938584,1719953451808,-14636.05,0.00014616,2]
[330938585,1719953451819,-500.0,0.00014616,2]
[330938586,1719953451830,-500.0,0.00014616,2]
[330938587,1719953451840,-500.0,0.00014616,2]
[330938588,1719953451850,-5037.86,0.00014616,2]
[330938589,1719953451861,-1597.8,0.00014616,2]
[330938590,1719953451872,-5338.76,0.00014616,2]
[330938591,1719953451882,-1179.03,0.00014616,2]
[330938592,1719953451893,-1026.14,0.00014616,2]
[330938593,1719953451903,-868.19,0.00014616,2]
[330938594,1719953451914,-9668.87,0.00014616,2]
[330938595,1719953451925,-5330.17,0.00014616,2]
[330938596,1719953451936,-721.13,0.00014699,2]
[330938597,1719953451949,-721.13,0.00014699,2]
[330938598,1719953451959,-721.13,0.00014699,2]
[330938599,1719953451968,-115000.00000001,0.000147,2]
[330938600,1719953451978,-153.0,0.000147,2]
[330938601,1719953451988,-153.0,0.000147,2]
[330938602,1719953451997,-153.0,0.000147,2]
[330938603,1719953452127,-153.0,0.000147,2]
[330938604,1719953452184,-154.3550435,0.000147,2]
[330938605,1719953452196,-376.0432776,0.000147,2]
[330938606,1719953452206,-306.0,0.000147,2]
[330938607,1719953452215,-153.0,0.000147,2]
[330938608,1719953452225,-205.8359809,0.000147,2]
[330938609,1719953452235,-153.0,0.000147,2]
[330938610,1719953452244,-153.0,0.000147,2]
[330938611,1719953452253,-153.0,0.000147,2]
[330938612,1719953452263,-153.0,0.000147,2]
[330938613,1719953452272,-153.0,0.000147,2]
[330938614,1719953452281,-153.0,0.000147,2]
[330938615,1719953452290,-153.0,0.000147,2]
[330938616,1719953452299,-153.0,0.000147,2]
[330938617,1719953452309,-153.0,0.000147,2]
[330938618,1719953452318,-500.0,0.00014886,2]
[330938619,1719953452328,-709.62,0.00014886,2]
[330938620,1719953452337,-1961.17,0.00014886,2]
[330938621,1719953452348,-484.82,0.00014886,2]
[330938622,1719953452357,-763.02,0.00014886,2]
[330938623,1719953452366,-12755.50651564,0.00014886,2]
[330938624,1719953452385,-310.76348436,0.00014886,2]
[330938625,1719953452394,-1451.22,0.00014886,2]
[330938626,1719953452403,-1012.0,0.00014887,2]
[330938627,1719953452413,-500.0,0.00014887,2]
[330938628,1719953452422,-1058.43,0.00014887,2]
[330938629,1719953452431,-900.84,0.00014887,2]
[330938630,1719953452440,-84.1432181,0.00014887,2]
[330938631,1719953452452,-1072.8467819,0.00014887,2]
[330938632,1719953452461,-500.0,0.00014887,2]
[330938633,1719953452470,-652.55,0.00014887,2]
[330938634,1719953452479,-648.63,0.00014887,2]
[330938635,1719953452488,-601.13,0.00014887,2]
[330938636,1719953452497,-500.0,0.00014887,2]
[330938637,1719953452506,-572.32,0.00014887,2]
[330938638,1719953452516,-2660.79,0.00014887,2]
[330938639,1719953452525,-500.0,0.00014887,2]
[330938640,1719953452534,-684.69,0.00014887,2]
[330938641,1719953452543,-500.0,0.00014887,2]
[330938642,1719953452552,-500.0,0.00014887,2]
[330938643,1719953452562,-1189.34,0.00014887,2]
[330938644,1719953452572,-501.85,0.00014887,2]
[330938645,1719953452581,-500.0,0.00014887,2]
[330938646,1719953452592,-500.0,0.00014887,2]
[330938647,1719953452601,-755.48,0.00014887,2]
[330938648,1719953452610,-708.11,0.00014887,2]
[330938649,1719953452620,-1195.87,0.00014887,2]
[330938650,1719953452629,-2542.93,0.00014887,2]
[330938651,1719953452638,-5669.46,0.00014887,2]
[330938652,1719953452647,-7177.56,0.00014887,2]
[330938653,1719953452656,-721.13,0.00014887,2]
[330938654,1719953452665,-721.13,0.00014887,2]
[330938655,1719953452674,-721.13,0.00014887,2]
[330938656,1719953452683,-721.13,0.00014887,2]
[330938657,1719953452693,-721.13,0.00014887,2]
[330938658,1719953452702,-721.20071671,0.00014887,2]
[330938659,1719953452711,-2764.22,0.00014887,2]
[330938660,1719953452720,-500.0,0.00014887,2]
[330938661,1719953452729,-500.0,0.00014887,2]
[330938662,1719953452738,-1408.99,0.00014887,2]
[330938663,1719953452746,-500.0,0.00014887,2]
[330938664,1719953452756,-1047.62,0.00014887,2]
[330938665,1719953452764,-500.0,0.00014887,2]
[330938666,1719953452773,-3498.68,0.00014887,2]
[330938667,1719953452782,-500.0,0.00014888,2]
[330938668,1719953452791,-500.0,0.00014888,2]
[330938669,1719953452800,-571.31,0.00014888,2]
[330938670,1719953452809,-780.2,0.00014888,2]
[330938671,1719953452818,-6991.72,0.00014888,2]
[330938672,1719953452827,-500.0,0.00014888,2]
[330938673,1719953452836,-1108.22,0.00014888,2]
[330938674,1719953452845,-1316.98,0.00014888,2]
[330938675,1719953452854,-500.0,0.00014888,2]
[330938676,1719953452863,-750.53,0.00014888,2]
[330938677,1719953452872,-599.12,0.00014888,2]
[330938678,1719953452881,-500.0,0.00014888,2]
[330938679,1719953452890,-500.0,0.00014888,2]
[330938680,1719953452898,-500.0,0.00014888,2]
[330938681,1719953452907,-853.81,0.00014888,2]
[330938682,1719953452915,-555.2,0.00014888,2]
[330938683,1719953452924,-808.36,0.00014888,2]
[330938684,1719953452933,-1045.46,0.00014888,2]
[330938685,1719953452942,-660.46,0.00014888,2]
[330938686,1719953452951,-830.13,0.00014888,2]
[330938687,1719953452961,-1050.41,0.00014888,2]
[330938688,1719953452970,-677.38,0.00014888,2]
[330938689,1719953452978,-807.44,0.00014888,2]
[330938690,1719953452987,-411.05884868,0.00014888,2]
[330938691,1719953452996,-500.0,0.00014889,2]
[330938692,1719953453006,-500.0,0.00014889,2]
[330938693,1719953453018,-14636.05,0.0001489,2]
[330938694,1719953453027,-500.0,0.0001489,2]
[330938695,1719953453035,-500.0,0.0001489,2]
[330938696,1719953453044,-517.1,0.0001489,2]
[330938697,1719953453054,-5037.86,0.0001489,2]
[330938698,1719953453063,-1597.8,0.0001489,2]
[330938699,1719953453071,-5338.76,0.0001489,2]
[330938700,1719953453080,-66.62262395,0.0001489,2]
[330938701,1719953453093,-908.757849,0.0001489,2]
[330938702,1719953453105,-203.64952705,0.0001489,2]
[330938703,1719953453115,-1026.14,0.0001489,2]
[330938704,1719953453125,-868.19,0.0001489,2]
[330938705,1719953453134,-3048.77771505,0.0001489,2]
[330938706,1719953453146,-6620.09228495,0.0001489,2]
[330938707,1719953453155,-82.96841031,0.0001489,2]
[330938708,1719953491555,24900.0,0.00013564,2]
[330938710,1719953668259,931.95286352,0.00013964,2]
[330938711,1719953762102,500.0,0.000139,7]
[330938712,1719953763086,500.0,0.000139,7]
[330938713,1719953763848,500.0,0.000139,7]
[330938714,1719953764600,500.0,0.000139,7]
[330938715,1719953765352,500.0,0.000139,7]
[330938716,1719953766105,500.0,0.000139,7]
[330938717,1719953766854,500.0,0.000139,7]
[330938718,1719953767613,500.0,0.000139,7]
[330938719,1719953768359,500.0,0.000139,7]
[330938720,1719953769102,500.0,0.000139,7]
[330938721,1719953769844,500.0,0.000139,7]
[330938722,1719953770838,500.0,0.000139,7]
[330938723,1719953771458,500.0,0.000139,7]
[330938724,1719953772205,500.0,0.000139,7]